[Event "*** Titled Tuesday Blitz"]
[Site "Chess.com"]
[Date "2020.11.10"]
[Round "2"]
[White "Algeriano22"]
[Black "Keures"]
[Result "1-0"]
[WhiteElo "2692"]
[BlackElo "2331"]
[TimeControl "180+1"]
[EndTime "10:18:57 PST"]
[Termination "Algeriano22 won on time"]

1. e4 {[%clk 0:03:00.9]} 1... e6 {[%clk 0:02:59.7]} 2. d3 {[%clk 0:02:59.3]}
2... d5 {[%clk 0:02:59.8]} 3. Qe2 {[%clk 0:02:59.9]} 3... Nf6 {[%clk 0:02:59.3]}
4. Nf3 {[%clk 0:02:59.8]} 4... c5 {[%clk 0:02:49.8]} 5. g3 {[%clk 0:02:59.5]}
5... g6 {[%clk 0:02:48.3]} 6. Bg2 {[%clk 0:02:58.4]} 6... Bg7 {[%clk 0:02:48.3]}
7. O-O {[%clk 0:02:56.4]} 7... O-O {[%clk 0:02:47.9]} 8. e5 {[%clk 0:02:53]}
8... Nfd7 {[%clk 0:02:46.8]} 9. h4 {[%clk 0:02:53.5]} 9... Nc6 {[%clk
0:02:43.4]} 10. Bf4 {[%clk 0:02:53.6]} 10... Qc7 {[%clk 0:02:37.9]} 11. Re1
{[%clk 0:02:52.4]} 11... a5 {[%clk 0:02:31.7]} 12. a4 {[%clk 0:02:47.9]} 12...
b6 {[%clk 0:02:20.8]} 13. c3 {[%clk 0:02:47.3]} 13... Ba6 {[%clk 0:02:18.9]} 14.
Nbd2 {[%clk 0:02:47]} 14... Rad8 {[%clk 0:02:09.5]} 15. Nf1 {[%clk 0:02:47]}
15... d4 {[%clk 0:02:04.1]} 16. c4 {[%clk 0:02:46.5]} 16... Bb7 {[%clk
0:02:01.1]} 17. N1h2 {[%clk 0:02:45.2]} 17... h5 {[%clk 0:01:45.7]} 18. g4
{[%clk 0:02:29.9]} 18... hxg4 {[%clk 0:01:42.9]} 19. Nxg4 {[%clk 0:02:29.7]}
19... Ne7 {[%clk 0:01:35.2]} 20. Nf6+ {[%clk 0:01:58.7]} 20... Kh8 {[%clk
0:01:12.4]} 21. h5 {[%clk 0:01:56.3]} 21... Nf5 {[%clk 0:01:03.8]} 22. Qd2
{[%clk 0:01:50.7]} 22... Bxf3 {[%clk 0:00:23.1]} 23. Bxf3 {[%clk 0:01:48.2]}
23... Nh4 {[%clk 0:00:22.5]} 24. Bh1 {[%clk 0:01:31.6]} 24... Nb8 {[%clk
0:00:20.2]} 25. Bg5 {[%clk 0:01:24.7]} 25... Nc6 {[%clk 0:00:14.6]} 26. Bxh4
{[%clk 0:01:20.2]} 26... Nxe5 {[%clk 0:00:11.1]} 27. Qf4 {[%clk 0:01:20.1]}
27... Qd6 {[%clk 0:00:03.2]} 28. Rxe5 {[%clk 0:01:14.5]} 1-0

[Event "*** Titled Tuesday Blitz"]
[Site "Chess.com"]
[Date "2020.11.10"]
[Round "2"]
[White "sara_khm"]
[Black "Parhamov"]
[Result "0-1"]
[WhiteElo "2584"]
[BlackElo "2941"]
[TimeControl "180+1"]
[EndTime "10:18:58 PST"]
[Termination "Parhamov won by resignation"]

1. d4 {[%clk 0:03:00.9]} 1... Nf6 {[%clk 0:02:59.2]} 2. c4 {[%clk 0:03:00]} 2...
e6 {[%clk 0:02:56.7]} 3. Nf3 {[%clk 0:02:59.5]} 3... d5 {[%clk 0:02:56.4]} 4.
Nc3 {[%clk 0:02:59]} 4... dxc4 {[%clk 0:02:53.6]} 5. e4 {[%clk 0:02:51.3]} 5...
b5 {[%clk 0:02:53.4]} 6. Nxb5 {[%clk 0:02:40.4]} 6... Nxe4 {[%clk 0:02:49.5]} 7.
Bxc4 {[%clk 0:02:40.3]} 7... Bb4+ {[%clk 0:02:29.4]} 8. Kf1 {[%clk 0:02:08.7]}
8... O-O {[%clk 0:02:28.3]} 9. Bf4 {[%clk 0:02:06.2]} 9... Nd6 {[%clk
0:02:26.3]} 10. Nxd6 {[%clk 0:01:41]} 10... Bxd6 {[%clk 0:02:23.9]} 11. Bg3
{[%clk 0:01:37.2]} 11... Bb7 {[%clk 0:02:22.1]} 12. Rc1 {[%clk 0:01:37]} 12...
Nd7 {[%clk 0:02:21.7]} 13. Ne5 {[%clk 0:01:28.2]} 13... Rb8 {[%clk 0:01:54.1]}
14. Qe2 {[%clk 0:01:26.5]} 14... Nf6 {[%clk 0:01:44.4]} 15. Bd3 {[%clk
0:01:10.5]} 15... Nd5 {[%clk 0:01:41.6]} 16. Kg1 {[%clk 0:00:56.6]} 16... Qg5
{[%clk 0:01:31.7]} 17. Rd1 {[%clk 0:00:47.1]} 17... Rbd8 {[%clk 0:01:23]} 18. h4
{[%clk 0:00:45.2]} 18... Qf6 {[%clk 0:01:18.9]} 19. Qc2 {[%clk 0:00:24.6]} 19...
h6 {[%clk 0:01:05.2]} 20. a3 {[%clk 0:00:24.8]} 20... Nf4 {[%clk 0:01:00.3]} 21.
Be4 {[%clk 0:00:24.7]} 21... Bxe4 {[%clk 0:00:46.2]} 22. Qxe4 {[%clk 0:00:14.6]}
22... Bxe5 {[%clk 0:00:46.2]} 0-1

[Event "*** Titled Tuesday Blitz"]
[Site "Chess.com"]
[Date "2020.11.10"]
[Round "2"]
[White "Anton_Demchenko"]
[Black "KatarinaOstojic"]
[Result "1-0"]
[WhiteElo "2832"]
[BlackElo "2343"]
[TimeControl "180+1"]
[EndTime "10:18:58 PST"]
[Termination "Anton_Demchenko won by resignation"]

1. e4 {[%clk 0:03:00.9]} 1... c5 {[%clk 0:02:59.8]} 2. Nf3 {[%clk 0:02:59.5]}
2... d6 {[%clk 0:03:00.1]} 3. d4 {[%clk 0:03:00]} 3... cxd4 {[%clk 0:03:01]} 4.
Nxd4 {[%clk 0:03:00.8]} 4... Nf6 {[%clk 0:03:01.6]} 5. Nc3 {[%clk 0:03:01.4]}
5... a6 {[%clk 0:03:02.2]} 6. f3 {[%clk 0:03:01.7]} 6... e5 {[%clk 0:03:01.8]}
7. Nb3 {[%clk 0:03:01.7]} 7... Be6 {[%clk 0:03:02.5]} 8. Be3 {[%clk 0:03:02.3]}
8... Be7 {[%clk 0:03:03.2]} 9. Qd2 {[%clk 0:03:02.8]} 9... O-O {[%clk
0:03:03.9]} 10. O-O-O {[%clk 0:03:03.3]} 10... a5 {[%clk 0:03:04.5]} 11. a4
{[%clk 0:03:00]} 11... Nc6 {[%clk 0:03:04.4]} 12. g4 {[%clk 0:02:58.8]} 12...
Nb4 {[%clk 0:03:03.8]} 13. g5 {[%clk 0:02:59.1]} 13... Nh5 {[%clk 0:03:03.5]}
14. Kb1 {[%clk 0:02:48.7]} 14... Qc7 {[%clk 0:03:02.6]} 15. Qf2 {[%clk 0:02:35]}
15... f5 {[%clk 0:02:58.7]} 16. Bb6 {[%clk 0:02:20.6]} 16... Qc8 {[%clk
0:02:58.6]} 17. Bxa5 {[%clk 0:01:28.2]} 17... Nc6 {[%clk 0:02:57.7]} 18. Bb6
{[%clk 0:01:13]} 18... Bxg5 {[%clk 0:02:55.8]} 19. Bb5 {[%clk 0:01:08.7]} 19...
Be7 {[%clk 0:01:36.4]} 20. Qd2 {[%clk 0:00:48.6]} 20... Nf4 {[%clk 0:01:28.3]}
21. Nd5 {[%clk 0:00:45.8]} 21... Bg5 {[%clk 0:01:22.4]} 22. Qc3 {[%clk
0:00:37.2]} 22... Bxd5 {[%clk 0:01:16.5]} 23. exd5 {[%clk 0:00:38.1]} 23... Ne7
{[%clk 0:01:13.3]} 24. Qb4 {[%clk 0:00:38.5]} 24... Nexd5 {[%clk 0:01:07]} 25.
Bc4 {[%clk 0:00:38.3]} 25... Qc6 {[%clk 0:01:05.5]} 26. Qb5 {[%clk 0:00:32.6]}
26... Kh8 {[%clk 0:01:04.3]} 27. Bxd5 {[%clk 0:00:32.7]} 27... Nxd5 {[%clk
0:00:49]} 28. Rxd5 {[%clk 0:00:33.6]} 1-0

[Event "*** Titled Tuesday Blitz"]
[Site "Chess.com"]
[Date "2020.11.10"]
[Round "2"]
[White "chessmachine14"]
[Black "Mr_Heisenberg13"]
[Result "0-1"]
[WhiteElo "2291"]
[BlackElo "2493"]
[TimeControl "180+1"]
[EndTime "10:18:58 PST"]
[Termination "Mr_Heisenberg13 won by checkmate"]

1. e4 {[%clk 0:03:00.9]} 1... c5 {[%clk 0:02:58.9]} 2. Nf3 {[%clk 0:03:00.8]}
2... e6 {[%clk 0:02:59.1]} 3. d4 {[%clk 0:03:01.1]} 3... cxd4 {[%clk 0:03:00]}
4. Nxd4 {[%clk 0:03:01.4]} 4... Nf6 {[%clk 0:03:00.2]} 5. Nc3 {[%clk 0:03:01]}
5... Nc6 {[%clk 0:03:00.3]} 6. Ndb5 {[%clk 0:03:00]} 6... Bc5 {[%clk 0:02:59.1]}
7. Nd6+ {[%clk 0:02:58.9]} 7... Ke7 {[%clk 0:02:59]} 8. Bf4 {[%clk 0:02:47.4]}
8... e5 {[%clk 0:02:58.1]} 9. Nf5+ {[%clk 0:02:46.3]} 9... Kf8 {[%clk
0:02:49.8]} 10. Be3 {[%clk 0:02:43.4]} 10... Bb4 {[%clk 0:02:49.6]} 11. a3
{[%clk 0:02:37.2]} 11... Bxc3+ {[%clk 0:02:48.5]} 12. bxc3 {[%clk 0:02:35.5]}
12... Nxe4 {[%clk 0:02:47.2]} 13. Qd5 {[%clk 0:02:16.5]} 13... Nf6 {[%clk
0:02:40.1]} 14. Qd6+ {[%clk 0:02:16.4]} 14... Kg8 {[%clk 0:02:39.9]} 15. Bc4
{[%clk 0:01:47.2]} 15... Ne8 {[%clk 0:02:32.2]} 16. Qd5 {[%clk 0:01:38.5]} 16...
Qf6 {[%clk 0:02:30]} 17. g4 {[%clk 0:01:32.6]} 17... Nc7 {[%clk 0:02:29.4]} 18.
Qd2 {[%clk 0:01:21.8]} 18... d5 {[%clk 0:02:27.7]} 19. Bxd5 {[%clk 0:01:03.8]}
19... Nxd5 {[%clk 0:02:28.6]} 20. Qxd5 {[%clk 0:01:00]} 20... Bxf5 {[%clk
0:02:27.6]} 21. gxf5 {[%clk 0:00:58.8]} 21... Qxf5 {[%clk 0:02:26.8]} 22. O-O-O
{[%clk 0:00:51.1]} 22... h6 {[%clk 0:02:23.1]} 23. Rhg1 {[%clk 0:00:51.3]} 23...
Kh7 {[%clk 0:02:23.1]} 24. Rxg7+ {[%clk 0:00:29.1]} 24... Kxg7 {[%clk
0:02:19.6]} 25. Rg1+ {[%clk 0:00:29.7]} 25... Kh7 {[%clk 0:02:08.5]} 26. Qd6
{[%clk 0:00:26.3]} 26... Qe6 {[%clk 0:01:59.7]} 27. Qd3+ {[%clk 0:00:22.4]}
27... e4 {[%clk 0:01:58.2]} 28. Qb5 {[%clk 0:00:13.9]} 28... Rhg8 {[%clk
0:01:57]} 29. Re1 {[%clk 0:00:11.3]} 29... Rgd8 {[%clk 0:01:47.2]} 30. Qh5
{[%clk 0:00:10]} 30... Qg6 {[%clk 0:01:44.9]} 31. Qh4 {[%clk 0:00:09.8]} 31...
Ne5 {[%clk 0:01:40.7]} 32. Kb1 {[%clk 0:00:09.5]} 32... Nf3 {[%clk 0:01:40.7]}
33. Qf4 {[%clk 0:00:01.6]} 33... Nxe1 {[%clk 0:01:39.4]} 34. Bd4 {[%clk
0:00:01.9]} 34... Rxd4 {[%clk 0:01:36]} 35. cxd4 {[%clk 0:00:02.8]} 35... Nf3
{[%clk 0:01:36.4]} 36. Qc7 {[%clk 0:00:02.1]} 36... Nxd4 {[%clk 0:01:33.3]} 37.
c3 {[%clk 0:00:02.2]} 37... e3+ {[%clk 0:01:33.5]} 38. Kb2 {[%clk 0:00:02.7]}
38... Qc2+ {[%clk 0:01:33.5]} 39. Ka1 {[%clk 0:00:02.3]} 39... Nb3# {[%clk
0:01:34.4]} 0-1

[Event "*** Titled Tuesday Blitz"]
[Site "Chess.com"]
[Date "2020.11.10"]
[Round "2"]
[White "Zhuu96"]
[Black "Xtrmntr78"]
[Result "1-0"]
[WhiteElo "2888"]
[BlackElo "2566"]
[TimeControl "180+1"]
[EndTime "10:18:59 PST"]
[Termination "Zhuu96 won on time"]

1. e4 {[%clk 0:02:59.7]} 1... e5 {[%clk 0:02:58.9]} 2. Nf3 {[%clk 0:02:59]} 2...
d5 {[%clk 0:02:59.2]} 3. Nxe5 {[%clk 0:02:55.3]} 3... Bd6 {[%clk 0:02:59.7]} 4.
d4 {[%clk 0:02:55.5]} 4... dxe4 {[%clk 0:02:59.8]} 5. Bc4 {[%clk 0:02:48.1]}
5... Bxe5 {[%clk 0:02:59.4]} 6. Qh5 {[%clk 0:02:47.8]} 6... Qe7 {[%clk
0:02:59.4]} 7. dxe5 {[%clk 0:02:47.6]} 7... Nc6 {[%clk 0:02:58.9]} 8. Nc3 {[%clk
0:02:35]} 8... Nxe5 {[%clk 0:02:45]} 9. Bg5 {[%clk 0:02:17.1]} 9... Nf6 {[%clk
0:02:23.6]} 10. Qe2 {[%clk 0:02:10.4]} 10... Nxc4 {[%clk 0:02:20]} 11. Qxc4
{[%clk 0:02:09.8]} 11... O-O {[%clk 0:02:15.7]} 12. Nd5 {[%clk 0:02:07.1]} 12...
Qe5 {[%clk 0:02:10.3]} 13. Bxf6 {[%clk 0:02:03]} 13... gxf6 {[%clk 0:02:09.9]}
14. O-O-O {[%clk 0:02:03.6]} 14... c6 {[%clk 0:02:04.2]} 15. Ne3 {[%clk
0:02:00.4]} 15... Be6 {[%clk 0:02:02.9]} 16. Qb4 {[%clk 0:01:53.7]} 16... f5
{[%clk 0:02:02.3]} 17. g3 {[%clk 0:01:52.4]} 17... a5 {[%clk 0:02:01]} 18. Qe7
{[%clk 0:01:49.2]} 18... Rfe8 {[%clk 0:01:46.2]} 19. Qg5+ {[%clk 0:01:48.9]}
19... Kh8 {[%clk 0:01:46.2]} 20. Rhe1 {[%clk 0:01:48.5]} 20... a4 {[%clk
0:01:40.1]} 21. a3 {[%clk 0:01:46.1]} 21... Ra5 {[%clk 0:01:39.2]} 22. Rd8
{[%clk 0:01:43.7]} 22... Ra8 {[%clk 0:01:34.8]} 23. Red1 {[%clk 0:01:43.4]}
23... Raxd8 {[%clk 0:01:33]} 24. Rxd8 {[%clk 0:01:42.4]} 24... Rxd8 {[%clk
0:01:29.5]} 25. Qxd8+ {[%clk 0:01:42.2]} 25... Kg7 {[%clk 0:01:28.3]} 26. Qg5+
{[%clk 0:01:40.8]} 26... Kf8 {[%clk 0:01:27.5]} 27. g4 {[%clk 0:01:37.7]} 27...
Qxh2 {[%clk 0:01:19.5]} 28. gxf5 {[%clk 0:01:36.8]} 28... Ba2 {[%clk 0:01:00.6]}
29. Qd8+ {[%clk 0:01:24.3]} 29... Kg7 {[%clk 0:00:59.6]} 30. Qd4+ {[%clk
0:01:24.3]} 30... Kf8 {[%clk 0:00:43.2]} 31. Qd8+ {[%clk 0:01:23]} 31... Kg7
{[%clk 0:00:42.9]} 32. f6+ {[%clk 0:01:23.4]} 32... Kg6 {[%clk 0:00:19.1]} 33.
Qg8+ {[%clk 0:01:22.7]} 1-0

[Event "*** Titled Tuesday Blitz"]
[Site "Chess.com"]
[Date "2020.11.10"]
[Round "2"]
[White "Marcin"]
[Black "Buryshin_Vasyl"]
[Result "1-0"]
[WhiteElo "2474"]
[BlackElo "2278"]
[TimeControl "180+1"]
[EndTime "10:19:00 PST"]
[Termination "Marcin won on time"]

1. d4 {[%clk 0:03:00.9]} 1... f5 {[%clk 0:02:59.3]} 2. e4 {[%clk 0:02:59.2]}
2... fxe4 {[%clk 0:02:58]} 3. Nc3 {[%clk 0:02:59]} 3... Nf6 {[%clk 0:02:57.5]}
4. Bg5 {[%clk 0:02:59.2]} 4... e6 {[%clk 0:02:40.4]} 5. Nxe4 {[%clk 0:02:57.5]}
5... Be7 {[%clk 0:02:39.9]} 6. Bxf6 {[%clk 0:02:57.4]} 6... Bxf6 {[%clk
0:02:39.2]} 7. c3 {[%clk 0:02:58]} 7... Nc6 {[%clk 0:02:38]} 8. Bd3 {[%clk
0:02:58.3]} 8... b6 {[%clk 0:02:34.1]} 9. Nf3 {[%clk 0:02:51.8]} 9... Bb7 {[%clk
0:02:22.9]} 10. Qc2 {[%clk 0:02:49.3]} 10... O-O {[%clk 0:01:54.5]} 11. Nxf6+
{[%clk 0:02:48]} 11... Qxf6 {[%clk 0:01:54.9]} 12. Bxh7+ {[%clk 0:02:48]} 12...
Kh8 {[%clk 0:01:55]} 13. O-O-O {[%clk 0:02:28.1]} 13... Ne7 {[%clk 0:01:35.5]}
14. Bd3 {[%clk 0:02:25.6]} 14... Nf5 {[%clk 0:01:00.6]} 15. Ne5 {[%clk
0:02:14.2]} 15... Rad8 {[%clk 0:00:50.8]} 16. f3 {[%clk 0:02:10.7]} 16... d6
{[%clk 0:00:44.3]} 17. Ng4 {[%clk 0:02:10.1]} 17... Qf7 {[%clk 0:00:40.5]} 18.
Rhe1 {[%clk 0:02:04.6]} 18... Rfe8 {[%clk 0:00:20.5]} 19. Qd2 {[%clk 0:01:53.7]}
19... Nh4 {[%clk 0:00:11.6]} 20. Qg5 {[%clk 0:01:44.4]} 20... Nf5 {[%clk
0:00:08.9]} 21. Rd2 {[%clk 0:01:20.3]} 21... Kg8 {[%clk 0:00:04.2]} 22. Rde2
{[%clk 0:01:19.8]} 22... Bd5 {[%clk 0:00:02.8]} 23. b3 {[%clk 0:01:17.8]} 23...
c5 {[%clk 0:00:02.1]} 24. Bxf5 {[%clk 0:01:04]} 24... exf5 {[%clk 0:00:01.6]}
25. Nh6+ {[%clk 0:01:04.2]} 1-0

[Event "*** Titled Tuesday Blitz"]
[Site "Chess.com"]
[Date "2020.11.10"]
[Round "2"]
[White "barbara25"]
[Black "PlotnikovPavel"]
[Result "0-1"]
[WhiteElo "2270"]
[BlackElo "2465"]
[TimeControl "180+1"]
[EndTime "10:19:01 PST"]
[Termination "PlotnikovPavel won by checkmate"]

1. e4 {[%clk 0:03:00.8]} 1... e5 {[%clk 0:02:58.5]} 2. Nf3 {[%clk 0:02:48.3]}
2... Nc6 {[%clk 0:02:56.5]} 3. d4 {[%clk 0:02:48.2]} 3... exd4 {[%clk
0:02:57.2]} 4. Nxd4 {[%clk 0:02:45.1]} 4... Bc5 {[%clk 0:02:57.4]} 5. c3 {[%clk
0:02:32.7]} 5... Qf6 {[%clk 0:02:56.4]} 6. Be3 {[%clk 0:02:30.8]} 6... Nge7
{[%clk 0:02:54.1]} 7. Bc4 {[%clk 0:02:28.7]} 7... Ne5 {[%clk 0:02:52.5]} 8. Be2
{[%clk 0:02:26.7]} 8... O-O {[%clk 0:02:52.3]} 9. O-O {[%clk 0:02:15.1]} 9...
Qg6 {[%clk 0:02:51.1]} 10. Nd2 {[%clk 0:02:13.6]} 10... d6 {[%clk 0:02:43.2]}
11. N2b3 {[%clk 0:02:04.1]} 11... Bb6 {[%clk 0:02:35.3]} 12. Qc2 {[%clk
0:02:00.5]} 12... f5 {[%clk 0:02:32.3]} 13. exf5 {[%clk 0:02:00.1]} 13... Nxf5
{[%clk 0:02:33.2]} 14. Nxf5 {[%clk 0:01:59.5]} 14... Bxf5 {[%clk 0:02:33.1]} 15.
Qd2 {[%clk 0:01:58]} 15... Bh3 {[%clk 0:02:31.4]} 16. Bg5 {[%clk 0:01:50.8]}
16... Be6 {[%clk 0:02:11.3]} 17. Nd4 {[%clk 0:01:47.3]} 17... Bc4 {[%clk
0:01:56.8]} 18. Be3 {[%clk 0:01:43.9]} 18... Bxe2 {[%clk 0:01:49.2]} 19. Qxe2
{[%clk 0:01:43.9]} 19... Rae8 {[%clk 0:01:49.5]} 20. Kh1 {[%clk 0:01:41.9]}
20... Kh8 {[%clk 0:01:39.1]} 21. h3 {[%clk 0:01:40.8]} 21... Nd3 {[%clk
0:01:09.2]} 22. Rad1 {[%clk 0:01:37.9]} 22... Nf4 {[%clk 0:01:08]} 23. Qf3
{[%clk 0:01:34.5]} 23... Nh5 {[%clk 0:00:29.8]} 24. Qg4 {[%clk 0:01:27.8]} 24...
Qxg4 {[%clk 0:00:28.3]} 25. hxg4 {[%clk 0:01:27.8]} 25... Nf6 {[%clk 0:00:29.2]}
26. g5 {[%clk 0:01:25.5]} 26... Ng4 {[%clk 0:00:29.4]} 27. Rfe1 {[%clk
0:01:20.4]} 27... Nxe3 {[%clk 0:00:14.1]} 28. fxe3 {[%clk 0:01:19.4]} 28... Rf2
{[%clk 0:00:13.7]} 29. Re2 {[%clk 0:01:11.5]} 29... Rxe2 {[%clk 0:00:12.5]} 30.
Nxe2 {[%clk 0:01:11.7]} 30... Rxe3 {[%clk 0:00:13.4]} 31. Rd2 {[%clk 0:01:12.1]}
31... Kg8 {[%clk 0:00:12.4]} 32. Kh2 {[%clk 0:01:11.7]} 32... Re4 {[%clk
0:00:11.9]} 33. Ng3 {[%clk 0:01:08.7]} 33... Rh4# {[%clk 0:00:11.5]} 0-1

[Event "*** Titled Tuesday Blitz"]
[Site "Chess.com"]
[Date "2020.11.10"]
[Round "2"]
[White "MasterKroket"]
[Black "Ze-Pequeno"]
[Result "0-1"]
[WhiteElo "2432"]
[BlackElo "2252"]
[TimeControl "180+1"]
[EndTime "10:19:02 PST"]
[Termination "Ze-Pequeno won by resignation"]

1. d4 {[%clk 0:03:00.9]} 1... Nf6 {[%clk 0:02:58.9]} 2. c4 {[%clk 0:03:01.3]}
2... Nc6 {[%clk 0:02:58.7]} 3. Nf3 {[%clk 0:03:00.3]} 3... e6 {[%clk 0:02:58.5]}
4. a3 {[%clk 0:03:00.7]} 4... d6 {[%clk 0:02:58.3]} 5. Nc3 {[%clk 0:03:00.6]}
5... g6 {[%clk 0:02:58.6]} 6. e4 {[%clk 0:02:58.9]} 6... Bg7 {[%clk 0:02:58.4]}
7. Be2 {[%clk 0:02:58.9]} 7... O-O {[%clk 0:02:58.7]} 8. O-O {[%clk 0:02:58.8]}
8... Re8 {[%clk 0:02:58.2]} 9. b4 {[%clk 0:02:54.9]} 9... e5 {[%clk 0:02:57.7]}
10. d5 {[%clk 0:02:54.9]} 10... Nd4 {[%clk 0:02:57.3]} 11. Bb2 {[%clk
0:02:49.1]} 11... c5 {[%clk 0:02:57.1]} 12. dxc6 {[%clk 0:02:48.4]} 12... bxc6
{[%clk 0:02:56.4]} 13. h3 {[%clk 0:02:38.5]} 13... c5 {[%clk 0:02:56.2]} 14. Bd3
{[%clk 0:02:23.7]} 14... Bb7 {[%clk 0:02:54.7]} 15. Re1 {[%clk 0:02:22.9]} 15...
Nh5 {[%clk 0:02:39.9]} 16. Nd5 {[%clk 0:02:17.4]} 16... Bxd5 {[%clk 0:02:24.3]}
17. cxd5 {[%clk 0:02:16.4]} 17... Nf4 {[%clk 0:02:21.6]} 18. bxc5 {[%clk
0:02:08.2]} 18... dxc5 {[%clk 0:02:20.8]} 19. Bc4 {[%clk 0:02:08.3]} 19... Qf6
{[%clk 0:02:19.2]} 20. Rb1 {[%clk 0:02:02.2]} 20... Nxh3+ {[%clk 0:02:17.7]} 21.
Kf1 {[%clk 0:01:56.9]} 21... Nf4 {[%clk 0:02:04.3]} 22. Bc3 {[%clk 0:01:54.2]}
22... Rab8 {[%clk 0:02:03.9]} 23. Ng1 {[%clk 0:01:25.8]} 23... Nh5 {[%clk
0:01:48.9]} 24. Re3 {[%clk 0:01:15.5]} 24... Bh6 {[%clk 0:01:37.8]} 25. Rh3
{[%clk 0:01:13.4]} 25... Bg5 {[%clk 0:01:21.9]} 26. Nf3 {[%clk 0:00:56.1]} 26...
Nf4 {[%clk 0:01:21.6]} 27. Rg3 {[%clk 0:00:56.1]} 27... Bh6 {[%clk 0:01:20.8]}
28. Bd2 {[%clk 0:00:44]} 28... Qd6 {[%clk 0:01:18]} 29. Be3 {[%clk 0:00:40.3]}
29... Rxb1 {[%clk 0:01:17.3]} 30. Qxb1 {[%clk 0:00:39.4]} 30... Rb8 {[%clk
0:01:18.2]} 31. Qc1 {[%clk 0:00:36.7]} 31... Qb6 {[%clk 0:01:16.2]} 32. Nxe5
{[%clk 0:00:30.3]} 32... Qb1 {[%clk 0:01:15.6]} 33. Ke1 {[%clk 0:00:17.9]} 33...
Qxe4 {[%clk 0:01:15]} 34. Nc6 {[%clk 0:00:13.7]} 34... Rb1 {[%clk 0:01:14.3]}
0-1

[Event "*** Titled Tuesday Blitz"]
[Site "Chess.com"]
[Date "2020.11.10"]
[Round "2"]
[White "Kiborg95"]
[Black "ErikBlomqvist"]
[Result "1-0"]
[WhiteElo "2748"]
[BlackElo "2512"]
[TimeControl "180+1"]
[EndTime "10:19:06 PST"]
[Termination "Kiborg95 won on time"]

1. e4 {[%clk 0:03:00.9]} 1... c5 {[%clk 0:02:55.3]} 2. Nc3 {[%clk 0:03:00.4]}
2... e6 {[%clk 0:02:51.1]} 3. Nf3 {[%clk 0:03:00.3]} 3... Nc6 {[%clk 0:02:50.4]}
4. d4 {[%clk 0:03:00.9]} 4... cxd4 {[%clk 0:02:51.3]} 5. Nxd4 {[%clk 0:03:01.8]}
5... a6 {[%clk 0:02:51.9]} 6. Be3 {[%clk 0:03:02.4]} 6... Nf6 {[%clk 0:02:49.6]}
7. Bd3 {[%clk 0:03:02.5]} 7... Qc7 {[%clk 0:02:42.8]} 8. Nb3 {[%clk 0:03:02.6]}
8... b5 {[%clk 0:02:24.5]} 9. f4 {[%clk 0:03:02]} 9... d6 {[%clk 0:02:23.4]} 10.
O-O {[%clk 0:03:02.3]} 10... Bb7 {[%clk 0:02:23.7]} 11. Qf3 {[%clk 0:03:02.7]}
11... Be7 {[%clk 0:02:23.4]} 12. Qh3 {[%clk 0:03:02.9]} 12... h5 {[%clk
0:02:21.1]} 13. Kh1 {[%clk 0:03:03]} 13... Nb4 {[%clk 0:02:16.4]} 14. a3 {[%clk
0:03:03.2]} 14... Nxd3 {[%clk 0:02:15.5]} 15. cxd3 {[%clk 0:03:04.1]} 15... Rc8
{[%clk 0:02:12]} 16. Nd4 {[%clk 0:03:02.4]} 16... Qd7 {[%clk 0:02:10.3]} 17. Qf3
{[%clk 0:02:49.8]} 17... g6 {[%clk 0:02:05.2]} 18. Nde2 {[%clk 0:02:46.3]} 18...
Ng4 {[%clk 0:01:21.5]} 19. Bd4 {[%clk 0:02:46]} 19... Rh7 {[%clk 0:01:05.9]} 20.
h3 {[%clk 0:02:46.3]} 20... e5 {[%clk 0:00:56.2]} 21. Bg1 {[%clk 0:02:41.2]}
21... Kf8 {[%clk 0:00:36.6]} 22. Qg3 {[%clk 0:02:34]} 22... Kg7 {[%clk
0:00:30.2]} 23. Rf3 {[%clk 0:02:13.1]} 23... exf4 {[%clk 0:00:23.7]} 24. Rxf4
{[%clk 0:02:07.4]} 24... Bg5 {[%clk 0:00:24]} 25. Rff1 {[%clk 0:02:07.2]} 25...
Bf6 {[%clk 0:00:21.1]} 26. d4 {[%clk 0:02:00.8]} 26... Re8 {[%clk 0:00:18.3]}
27. d5 {[%clk 0:01:47.7]} 27... Be5 {[%clk 0:00:17.8]} 28. Bd4 {[%clk
0:01:47.7]} 28... Kg8 {[%clk 0:00:16.8]} 29. Bxe5 {[%clk 0:01:38.2]} 29... Nxe5
{[%clk 0:00:13.4]} 30. Rf6 {[%clk 0:01:38.2]} 30... Qe7 {[%clk 0:00:10.6]} 31.
Raf1 {[%clk 0:01:37.9]} 31... Bc8 {[%clk 0:00:11.5]} 32. Nd4 {[%clk 0:01:34.7]}
32... Kh8 {[%clk 0:00:10]} 33. Nc6 {[%clk 0:01:32.5]} 33... Nxc6 {[%clk
0:00:09.4]} 34. dxc6 {[%clk 0:01:33.4]} 34... Be6 {[%clk 0:00:08.4]} 35. Nd5
{[%clk 0:01:31.2]} 35... Qd8 {[%clk 0:00:05.1]} 36. c7 {[%clk 0:01:22.8]} 36...
Qd7 {[%clk 0:00:04.5]} 37. Qc3 {[%clk 0:01:23.4]} 37... Rc8 {[%clk 0:00:04.4]}
38. Rxe6+ {[%clk 0:01:22.4]} 1-0

[Event "*** Titled Tuesday Blitz"]
[Site "Chess.com"]
[Date "2020.11.10"]
[Round "2"]
[White "MIJuanReyesRosa"]
[Black "yourstrulyme"]
[Result "0-1"]
[WhiteElo "2139"]
[BlackElo "2399"]
[TimeControl "180+1"]
[EndTime "10:19:09 PST"]
[Termination "yourstrulyme won on time"]

1. Nf3 {[%clk 0:02:57]} 1... Nf6 {[%clk 0:02:58.9]} 2. c4 {[%clk 0:02:56.2]}
2... e6 {[%clk 0:02:58.8]} 3. d4 {[%clk 0:02:49.5]} 3... d5 {[%clk 0:02:58.7]}
4. Nc3 {[%clk 0:02:49.3]} 4... Be7 {[%clk 0:02:58.6]} 5. Bf4 {[%clk 0:02:49.2]}
5... O-O {[%clk 0:02:57.3]} 6. e3 {[%clk 0:02:49.3]} 6... Nbd7 {[%clk
0:02:33.1]} 7. h3 {[%clk 0:02:46.2]} 7... a6 {[%clk 0:02:26.1]} 8. Qc2 {[%clk
0:02:44]} 8... dxc4 {[%clk 0:02:07.7]} 9. Bxc4 {[%clk 0:02:43.2]} 9... b5 {[%clk
0:02:08.3]} 10. Bd3 {[%clk 0:02:30.5]} 10... Bb7 {[%clk 0:02:08.2]} 11. O-O
{[%clk 0:02:21.2]} 11... c5 {[%clk 0:02:07]} 12. Ne5 {[%clk 0:01:28.2]} 12... c4
{[%clk 0:01:56.8]} 13. Be4 {[%clk 0:01:10.3]} 13... Nxe4 {[%clk 0:01:54.6]} 14.
Nxe4 {[%clk 0:01:08.6]} 14... Nf6 {[%clk 0:01:45.2]} 15. Ng5 {[%clk 0:01:02.9]}
15... h6 {[%clk 0:01:41.2]} 16. Nexf7 {[%clk 0:00:41.5]} 16... Rxf7 {[%clk
0:01:40.6]} 17. Nxf7 {[%clk 0:00:37.5]} 17... Kxf7 {[%clk 0:01:41.5]} 18. Be5
{[%clk 0:00:23.2]} 18... Be4 {[%clk 0:01:22.6]} 19. Qe2 {[%clk 0:00:20.1]} 19...
Bd3 {[%clk 0:01:21.9]} 20. Qf3 {[%clk 0:00:12.6]} 20... Bxf1 {[%clk 0:01:21.1]}
21. Rxf1 {[%clk 0:00:11]} 21... Qd5 {[%clk 0:01:21.6]} 22. Qg3 {[%clk
0:00:06.3]} 22... Rc8 {[%clk 0:01:12.4]} 23. Re1 {[%clk 0:00:05]} 23... Qe4
{[%clk 0:01:09.7]} 24. f3 {[%clk 0:00:04.1]} 24... Qg6 {[%clk 0:01:08.1]} 25.
Qf4 {[%clk 0:00:02.1]} 25... Kg8 {[%clk 0:01:00.5]} 0-1